bitfinex-derivatives/quotes_ETHF0:USTF0_20250530
["timestamp","ask_amount","ask_price","bid_price","bid_amount"]
[1748580415853,1.96799,2638.1,2637.8,5.7766]
[1748580416558,2.39159,2638.1,2637.8,5.7766]
[1748580416757,0.4236,2638.1,2638.0,3.9658]
[1748580417262,0.4236,2638.1,2638.0,8.9658]
[1748580419353,0.4236,2638.1,2638.0,7.7708]
[1748580420061,0.4236,2638.1,2638.0,3.2078]
[1748580420360,0.75802,2638.0,2637.7,0.75806]
[1748580420660,1.18159,2638.1,2637.7,1.3303]
[1748580420856,0.4236,2638.1,2637.8,0.75803]
[1748580421064,0.75801,2638.0,2637.8,0.75803]
[1748580421558,0.75801,2638.0,2637.7,1.3303]
[1748580421559,1.18158,2638.1,2637.9,0.75803]
[1748580421761,2.39908,2638.1,2637.9,0.75803]
[1748580421960,0.758,2638.0,2637.9,0.75803]
[1748580422156,1.6411,2638.1,2637.7,1.3303]
[1748580422361,1.6411,2638.1,2637.6,3.2078]
[1748580422362,0.75809,2637.7,2637.6,3.2078]
[1748580422553,0.75807,2637.8,2637.6,3.9659]
[1748580422955,0.82800857,2637.8,2637.6,3.9659]
[1748580423258,0.75809,2637.7,2637.6,3.2078]
[1748580423461,0.75809,2637.7,2637.6,3.96591]
[1748580423662,1.97559,2637.7,2637.6,3.2078]
[1748580423866,1.97559,2637.7,2637.6,3.96591]
[1748580424160,1.2175,2637.7,2637.6,3.96591]
[1748580424566,1.2175,2637.7,2637.6,3.2078]
[1748580425066,1.97559,2637.7,2637.6,3.96591]
[1748580425263,1.2175,2637.7,2637.6,3.96591]
[1748580427061,1.39873857,2638.0,2637.9,0.75803]
[1748580427366,1.39873857,2638.0,2637.7,1.9646]
[1748580427666,0.06993857,2638.0,2637.9,3.96583]
[1748580427860,0.06993857,2638.0,2637.9,5.23143]
[1748580431670,0.06993857,2638.0,2637.9,9.03643]
[1748580431973,0.06993857,2638.0,2637.9,7.77083]
[1748580432174,2.16143857,2638.0,2637.9,7.0128]
[1748580432468,0.75804,2637.9,2637.6,3.2078]
[1748580432672,1.3335,2637.8,2637.7,0.75809]
[1748580433569,0.73383857,2638.0,2637.9,0.75803]
[1748580433872,1.81260954,2638.0,2637.9,0.75803]
[1748580434367,3.03050954,2638.0,2637.9,0.75803]
[1748580434567,1.14870954,2638.0,2637.9,0.75803]
[1748580434769,0.06993857,2638.0,2637.9,3.96583]
[1748580434965,0.06993857,2638.0,2637.9,5.28733]
[1748580438271,8.57e-06,2638.1,2638.0,0.758]
[1748580438472,8.57e-06,2638.2,2638.1,0.75797]
[1748580438674,8.57e-06,2638.2,2638.1,1.42757]
[1748580438878,8.57e-06,2638.2,2638.1,6.42757]
[1748580441572,8.57e-06,2638.2,2638.1,10.24857]
[1748580442371,8.57e-06,2638.2,2638.1,1.42757]
[1748580442575,8.57e-06,2638.2,2638.1,5.24857]
[1748580444176,8.57e-06,2638.2,2638.1,0.75797]
[1748580445277,8.57e-06,2638.2,2638.1,4.57897]
[1748580447992,8.57e-06,2638.2,2638.1,0.75797]
[1748580448388,0.75795857,2638.2,2638.0,0.75798]
[1748580448593,1.3362,2638.1,2637.9,3.2078]
[1748580448787,0.758,2638.0,2637.9,3.2078]
[1748580448988,2.5814,2638.1,2637.9,3.2078]
[1748580449188,1.38643857,2638.0,2637.9,3.96581]
[1748580450689,2.4637143,2638.0,2637.9,3.96581]
[1748580450993,2.46371313,2638.0,2637.9,3.96581]
[1748580451797,2.46370477,2638.0,2637.9,3.96581]
[1748580452199,3.22170477,2638.0,2637.9,3.96583]
[1748580452394,3.22170477,2638.0,2637.9,3.2078]
[1748580453099,3.22170477,2638.0,2637.5,7.0288]
[1748580453287,2.14443857,2638.0,2637.5,7.0288]
[1748580454296,0.75803,2637.9,2637.5,7.0288]
[1748580454502,1.269,2637.8,2637.7,0.75809]
[1748580456091,0.7581,2637.7,2637.5,7.0288]
[1748580456296,1.3276,2637.6,2637.5,7.78694]
[1748580457397,2.08572,2637.6,2637.5,3.2078]
[1748580457797,3.16363612,2637.6,2637.5,3.2078]
[1748580457998,0.75814,2637.5,2637.4,0.76385465]
[1748580458199,2.74044,2637.5,2637.4,0.76385465]
[1748580458599,2.74044,2637.5,2637.4,0.00569465]
[1748580459501,2.74044,2637.5,2637.4,0.76386465]
[1748580460299,2.74044,2637.5,2637.4,0.00569465]
[1748580460801,2.74044,2637.5,2637.4,0.76386465]
[1748580460993,2.74044,2637.5,2637.4,0.00569465]
[1748580470610,2.81037857,2637.5,2637.4,0.00569465]
[1748580471015,2.05223857,2637.5,2637.4,0.00569465]
[1748580471313,0.06993857,2637.5,2637.4,0.76386465]
[1748580471508,0.06993857,2637.5,2637.4,1.98606465]
[1748580472206,0.06993857,2637.5,2637.4,5.79106465]
[1748580474014,0.06993857,2637.5,2637.4,1.22789465]
[1748580474319,0.82807857,2637.5,2637.4,0.00569465]
[1748580475012,0.06993857,2637.5,2637.4,0.00569465]
[1748580475209,2.15837857,2637.5,2637.4,0.00569465]
[1748580475512,2.81787857,2637.5,2637.4,0.00569465]
[1748580476016,3.89250519,2637.5,2637.4,0.00569465]
[1748580477118,3.89268774,2637.5,2637.4,0.00569465]
[1748580480917,3.89393321,2637.5,2637.4,0.00569465]
[1748580482307,0.75829,2637.0,2636.9,3.2078]
[1748580482513,1.07605464,2637.0,2636.9,3.2078]
[1748580482713,1.07614192,2637.0,2636.9,3.2078]
[1748580483015,1.07614192,2637.0,2636.9,3.96612]
[1748580483619,0.00569465,2637.2,2637.1,0.75826]
[1748580483813,0.75826,2637.1,2637.0,3.31338]
[1748580484014,0.76394465,2637.2,2637.0,3.31338]
[1748580484214,0.76394465,2637.2,2637.1,0.75826]
[1748580484415,0.76394465,2637.2,2637.0,3.31337]
[1748580484825,0.76394465,2637.2,2637.1,0.75826]
[1748580485019,0.75826,2637.1,2637.0,3.31338]
[1748580485220,0.75826,2637.1,2637.0,2.5551]
[1748580486221,0.75826,2637.1,2637.0,3.31339]
[1748580486409,0.00569465,2637.2,2637.1,0.75826]
[1748580486916,0.00569465,2637.2,2637.1,5.75826]
[1748580487225,3.2078,2638.2,2637.4,0.75817]
[1748580487425,1.07585201,2638.1,2638.0,3.2078]
[1748580487618,1.83382201,2638.1,2638.0,3.2078]
[1748580488121,1.83377299,2638.1,2638.0,3.2078]
[1748580488616,1.07580299,2638.1,2638.0,3.9658]
[1748580488817,1.07580299,2638.1,2638.0,3.2078]
[1748580489222,1.07580299,2638.1,2638.0,3.9658]
[1748580489421,0.75789,2638.4,2638.1,0.75796]
[1748580489615,1.07505585,2638.3,2638.2,1.2974]
[1748580490916,1.83296585,2638.3,2638.2,1.2974]
[1748580491113,3.2078,2639.0,2638.2,1.2974]
[1748580491314,1.07449537,2638.9,2638.6,3.2078]
[1748580491520,1.07449537,2638.8,2638.2,1.2974]
[1748580491825,0.7579,2638.4,2638.2,1.2974]
[1748580492022,1.2261,2638.7,2638.2,1.2974]
[1748580492226,0.75791,2638.4,2638.2,1.2974]
[1748580492524,0.75791,2638.3,2638.2,1.2974]
[1748580492824,0.6591,2638.6,2638.2,1.2974]
[1748580493025,0.75789,2638.4,2638.2,2.05534]
[1748580493326,1.2261,2638.5,2638.2,1.2974]
[1748580493527,1.98398,2638.5,2638.2,2.05533]
[1748580494022,1.98398,2638.5,2638.3,1.2714]
[1748580494224,1.98398,2638.5,2638.3,2.02931]
[1748580494528,1.98398,2638.5,2638.3,1.2714]
[1748580494827,0.75789,2638.4,2638.3,1.2714]
[1748580495428,1.2261,2638.5,2638.3,1.2714]
[1748580495622,0.75789,2638.4,2638.3,1.2714]
[1748580495823,0.75792,2638.3,2638.1,4.62186]
[1748580496227,0.75792,2638.3,2638.1,5.92166]
[1748580496529,0.75792,2638.3,2638.2,1.2998]
[1748580497328,1.2261,2638.5,2638.2,1.2998]
[1748580497731,0.7579,2638.4,2638.2,2.05772]
[1748580498035,0.7579,2638.4,2638.3,1.2936]
[1748580498224,0.7579,2638.4,2638.3,2.05151]
[1748580498530,0.7579,2638.4,2638.3,1.2936]
[1748580499324,0.6591,2638.6,2638.3,1.2936]
[1748580499625,5.69836,2639.0,2638.4,3.2078]
[1748580499828,2.90771115,2638.9,2638.5,1.2936]
[1748580500032,1.07181115,2638.8,2638.5,2.05145]
[1748580500327,0.7578,2638.7,2638.6,0.75783]
[1748580500529,0.7578,2638.7,2638.6,0.612]
[1748580501122,0.6279,2638.9,2638.6,0.612]
[1748580501330,0.75777,2638.8,2638.7,5.94938]
[1748580501528,0.75777,2638.8,2638.7,5.1916]
[1748580503736,0.75777,2638.8,2638.7,3.2078]
[1748580504027,0.7578,2638.7,2638.6,0.612]
[1748580504228,0.75788,2638.4,2638.3,3.2078]
[1748580505236,2.00528,2638.4,2638.3,3.2078]
[1748580505438,1.2474,2638.4,2638.0,0.00569465]
[1748580505738,0.75797,2638.1,2638.0,0.00569465]
[1748580506932,2.43844597,2638.1,2638.0,0.00569465]
[1748580507136,5.64624597,2638.1,2638.0,0.00569465]
[1748580507737,0.75809,2637.7,2637.6,0.6671]
[1748580508936,0.75812,2637.6,2637.5,0.615]
[1748580509542,0.75814,2637.5,2637.4,3.21349465]
[1748580510734,0.75814,2637.5,2637.4,0.00569465]
[1748580513545,5.03755277,2637.5,2637.4,0.00569465]
[1748580516241,5.10749134,2637.5,2637.4,0.00569465]
[1748580517141,5.10740174,2637.5,2637.4,0.00569465]
[1748580518543,0.82807857,2637.5,2637.4,0.00569465]
[1748580519146,0.82807857,2637.5,2637.4,1.31209465]
[1748580519550,0.06993857,2637.5,2637.4,1.31209465]
[1748580519850,0.82807857,2637.5,2637.4,1.31209465]
[1748580520347,0.06993857,2637.5,2637.4,2.07026465]
[1748580521047,0.06993857,2637.5,2637.4,1.31209465]
[1748580521250,0.82807857,2637.5,2637.4,1.31209465]
[1748580521448,0.82807857,2637.5,2637.4,0.00569465]
[1748580522045,3.12514523,2637.5,2637.4,0.00569465]
[1748580522648,2.05437857,2637.5,2637.4,0.00569465]
[1748580522949,3.12502005,2637.5,2637.4,0.00569465]
[1748580523346,2.05437857,2637.5,2637.4,0.00569465]
[1748580524655,0.82807857,2637.5,2637.4,0.00569465]
[1748580525550,1.89858329,2637.5,2637.4,0.00569465]
[1748580525752,3.12528329,2637.5,2637.4,0.00569465]
[1748580529047,3.12528329,2637.5,2636.9,0.6519]
[1748580529048,1.89545,2637.4,2636.6,0.75838]
[1748580529253,1.89545,2637.4,2636.7,0.75836]
[1748580529254,0.75834,2636.9,2636.7,0.75836]
[1748580529457,0.75834,2636.9,2636.6,2.5069]
[1748580529458,0.75828,2637.1,2636.9,0.7583]
[1748580529758,0.75828,2637.1,2637.0,1.6606]
[1748580534058,1.83153834,2637.1,2637.0,1.6606]
[1748580534659,5.03933834,2637.1,2637.0,1.6606]
[1748580534962,5.03933834,2637.1,2637.0,0.6394]
[1748580538069,5.04166552,2637.1,2637.0,0.6394]
[1748580538372,0.75832,2636.9,2636.8,0.00569465]
[1748580538764,0.7583,2637.0,2636.9,0.75832]
[1748580539261,0.7583,2637.0,2636.9,1.3302]
[1748580539463,1.83396293,2637.0,2636.9,1.3302]
[1748580539768,1.07566293,2637.0,2636.9,2.08852]
[1748580539969,0.75832,2636.9,2636.8,0.00569465]
[1748580540269,1.83398293,2636.9,2636.8,0.00569465]
[1748580540869,1.83398293,2636.9,2636.8,1.32859465]
[1748580541172,1.83398293,2636.9,2636.8,0.00569465]
[1748580544959,1.83453553,2636.9,2636.8,0.00569465]
[1748580545564,1.9044741,2636.9,2636.8,0.00569465]
[1748580546969,1.9044741,2636.9,2636.8,1.31659465]
[1748580547184,1.1461541,2636.9,2636.8,5.28274465]
[1748580547564,0.06993857,2636.9,2636.8,5.28274465]
[1748580547968,1.14585462,2636.9,2636.8,5.28274465]
[1748580548171,0.06993857,2636.9,2636.8,5.28274465]
[1748580549472,0.06993857,2636.9,2636.8,10.28274465]
[1748580552877,0.82825857,2636.9,2636.8,4.52439465]
[1748580553374,0.82825857,2636.9,2636.8,8.34639465]
[1748580553579,0.82825857,2636.9,2636.8,4.52439465]
[1748580554170,0.06993857,2636.9,2636.8,5.28274465]
[1748580554475,0.82825857,2636.9,2636.8,5.28274465]
[1748580554675,0.06993857,2636.9,2636.8,5.28274465]
[1748580555173,0.82825857,2636.9,2636.8,5.28274465]
[1748580555670,0.82825857,2636.9,2636.8,4.52439465]
[1748580556075,0.82825857,2636.9,2636.8,5.28274465]
[1748580557072,0.82825857,2636.9,2636.8,4.52439465]
[1748580557275,0.82825857,2636.9,2636.8,5.28274465]
[1748580559076,0.82825857,2636.9,2636.8,3.21349465]
[1748580559476,0.82825857,2636.9,2636.8,0.00569465]
[1748580559775,1.90447028,2636.9,2636.8,0.00569465]
[1748580561779,1.90444702,2636.9,2636.8,0.00569465]
[1748580568480,1.90444702,2636.9,2636.8,0.76403465]
[1748580568481,1.14612702,2636.9,2636.8,0.76403465]
[1748580569177,0.06993857,2636.9,2636.8,2.67183465]
[1748580570487,0.82825857,2636.9,2636.8,2.67183465]
[1748580570882,0.06993857,2636.9,2636.8,2.67183465]
[1748580571687,0.82825857,2636.9,2636.8,1.91349465]
[1748580571888,0.06993857,2636.9,2636.8,2.67184465]
[1748580572186,0.82825857,2636.9,2636.8,1.91349465]
[1748580573891,0.06993857,2636.9,2636.8,6.46084465]
[1748580574388,1.90409126,2636.9,2636.8,6.46084465]
[1748580575486,0.82825857,2636.9,2636.8,6.46084465]
[1748580575690,0.06993857,2636.9,2636.8,6.46084465]
[1748580577496,0.82825857,2636.9,2636.8,6.46084465]
[1748580579293,0.06993857,2636.9,2636.8,6.46084465]
[1748580579492,0.82825857,2636.9,2636.8,6.46084465]
[1748580580089,0.06993857,2636.9,2636.8,6.46084465]
[1748580580389,0.82825857,2636.9,2636.8,6.46084465]
[1748580580990,0.06993857,2636.9,2636.8,6.46084465]
[1748580581190,0.82825857,2636.9,2636.8,6.46084465]
[1748580581488,0.06993857,2636.9,2636.8,6.46084465]
[1748580581892,0.82825857,2636.9,2636.8,6.46084465]
[1748580582087,0.06993857,2636.9,2636.8,6.46084465]
[1748580582593,0.82825857,2636.9,2636.8,5.70249465]
[1748580582792,0.82825857,2636.9,2636.8,6.46084465]
[1748580583293,0.82825857,2636.9,2636.8,5.70249465]
[1748580583488,0.82825857,2636.9,2636.8,6.46084465]
[1748580584495,0.82825857,2636.9,2636.8,5.70249465]
[1748580585598,1.90476286,2636.9,2636.8,5.70249465]
[1748580585798,1.90476286,2636.9,2636.8,6.46084465]
[1748580585992,1.90476286,2636.9,2636.8,2.67184465]
[1748580586192,1.90476286,2636.9,2636.8,6.46084465]
[1748580589299,1.14644286,2636.9,2636.8,6.46084465]
[1748580589503,1.90476286,2636.9,2636.8,2.67184465]
[1748580589701,1.90476286,2636.9,2636.8,6.42584465]
[1748580589901,1.90476286,2636.9,2636.8,5.66749465]
[1748580590096,1.90476286,2636.9,2636.8,6.42584465]
[1748580590398,1.90476286,2636.9,2636.8,5.66749465]
[1748580590594,1.90460131,2636.9,2636.8,0.00569465]
[1748580592401,3.19270131,2636.9,2636.8,0.00569465]
[1748580595399,3.19291,2636.9,2636.8,0.00569465]
[1748580599703,3.19305054,2636.9,2636.8,0.00569465]
[1748580600205,3.19305054,2636.9,2636.2,3.754]
[1748580600206,0.75849,2636.3,2636.2,3.754]
[1748580600407,1.8351589,2636.3,2636.2,3.754]
[1748580601203,0.75852,2636.2,2636.1,3.2078]
[1748580601404,0.75855,2636.1,2636.0,3.75969465]
[1748580601604,1.8352189,2636.1,2636.0,3.75969465]
[1748580601806,6.2498189,2636.1,2636.0,0.00569465]
[1748580602000,5.17315,2636.1,2636.0,0.00569465]
[1748580602209,6.24844055,2636.1,2636.0,0.00569465]
[1748580603201,0.75869,2635.6,2635.1,0.6441]
[1748580603409,0.75881,2635.2,2635.1,0.6441]
[1748580603708,0.94851,2635.2,2635.1,0.6441]
[1748580604611,0.75884,2635.1,2634.9,9.61888465]
[1748580604917,0.1897,2635.2,2634.9,9.61888465]
[1748580604918,0.94852,2635.2,2634.9,9.61887465]
[1748580605306,0.1897,2635.2,2635.1,0.75883]
[1748580605602,3.27773857,2636.3,2635.2,1.89698]
[1748580605803,0.75861,2635.9,2635.6,3.96647]
[1748580606104,0.75861,2635.9,2635.7,3.754]
[1748580606616,0.75861,2635.9,2635.7,4.9741]
[1748580606909,1.2922,2636.2,2635.7,4.9741]
[1748580607214,0.75862,2635.9,2635.7,4.9741]
[1748580607909,0.7586,2636.0,2635.7,5.73275]
[1748580608412,0.7586,2636.0,2635.8,1.2348]
[1748580608713,0.7586,2635.9,2635.8,1.2348]
[1748580609223,0.7586,2635.9,2635.8,1.8696]
[1748580609517,0.75859,2636.0,2635.8,1.8696]
[1748580609716,0.7586,2635.9,2635.8,1.8696]
[1748580610515,0.7586,2636.0,2635.8,2.62823]
[1748580610715,1.2922,2636.2,2635.8,1.8696]
[1748580610915,0.7586,2635.9,2635.8,1.8696]
[1748580611912,0.75858,2636.0,2635.8,2.62822]
[1748580612418,1.2922,2636.2,2635.8,1.8696]
[1748580612619,0.7586,2636.0,2635.8,1.8696]
[1748580612916,0.7586,2635.9,2635.8,1.8696]
[1748580615313,0.7586,2635.9,2635.8,2.5254]
[1748580616919,0.75859,2636.0,2635.8,3.28402]
[1748580617118,0.7586,2635.9,2635.8,2.5254]
[1748580619329,1.2922,2636.2,2635.8,2.5254]
[1748580619626,0.7586,2635.9,2635.8,2.5254]
[1748580620832,0.82853857,2635.9,2635.8,2.5254]
[1748580622929,0.82853857,2635.9,2635.6,3.2078]
[1748580622930,0.06993857,2635.9,2635.6,3.2078]
[1748580623125,0.75872,2635.5,2635.4,3.755]
[1748580623630,0.75872,2635.5,2635.4,5.0828]
[1748580624233,0.75872,2635.5,2635.4,5.84155]
[1748580624529,0.75872,2635.5,2635.4,5.0828]
[1748580624927,0.75875,2635.4,2635.3,0.6135]
[1748580625127,2.03245,2635.4,2635.3,0.6135]
[1748580625528,2.03245,2635.4,2634.9,1.33349465]
[1748580625529,1.2737,2635.4,2634.9,0.76456465]
[1748580625734,0.75883,2635.1,2635.0,0.659]
[1748580626234,0.75881,2635.2,2635.0,1.41786]
[1748580626530,0.75881,2635.2,2635.0,2.64476]
[1748580626734,0.75883,2635.1,2635.0,1.8859]
[1748580628329,0.75883,2635.1,2635.0,0.659]
[1748580629531,0.1897,2635.2,2635.1,0.75883]
[1748580629832,0.06993857,2635.9,2635.1,0.75883]
[1748580629833,0.06993857,2635.9,2635.1,5.65208]
[1748580630035,0.82856857,2635.9,2635.6,0.75867]
[1748580630334,0.06993857,2635.9,2635.7,2.4917]
[1748580630533,0.06993857,2635.9,2635.8,1.2225]
[1748580631234,0.82853857,2635.9,2635.8,1.2225]
[1748580631529,0.06993857,2635.9,2635.8,1.2225]
[1748580631730,0.82853857,2635.9,2635.8,1.2225]
[1748580631930,0.06993857,2635.9,2635.7,1.2692]
[1748580632125,0.75863,2635.8,2635.7,1.2692]
[1748580632533,0.75863,2635.8,2635.7,2.5473]
[1748580634433,0.82855857,2635.9,2635.7,3.30596]
[1748580634737,0.06993857,2635.9,2635.8,0.75863]
[1748580634931,0.06993857,2635.9,2635.8,2.01913]
[1748580635734,0.06993857,2635.9,2635.8,1.2605]
[1748580635942,0.82853857,2635.9,2635.8,1.2605]
[1748580636239,0.06993857,2635.9,2635.8,2.01913]
[1748580637335,0.82853857,2635.9,2635.8,1.2605]
[1748580637640,0.06993857,2635.9,2635.8,2.01913]
[1748580638934,0.06993857,2635.9,2635.8,1.2605]
[1748580639233,0.82853857,2635.9,2635.8,1.2605]
[1748580639639,0.06993857,2635.9,2635.8,2.01913]
[1748580640243,0.06993857,2635.9,2635.8,5.22693]
[1748580640442,3.21349465,2636.5,2636.4,0.75846]
[1748580640637,4.28738909,2636.5,2636.4,0.75846]
[1748580640836,4.28738909,2636.5,2636.1,6.9628]
[1748580640837,5.04581909,2636.5,2636.1,6.9628]
[1748580641044,3.97192465,2636.5,2636.2,1.8269]
[1748580641237,3.97192465,2636.5,2636.3,1.8603]
[1748580641438,0.75846,2636.4,2636.3,2.61877]
[1748580642137,3.97195465,2636.5,2636.3,2.61877]
[1748580642332,0.75846,2636.4,2636.3,2.61877]
[1748580642643,0.75846,2636.4,2636.3,1.8603]
[1748580643538,0.75846,2636.4,2636.3,0.6471]
[1748580643839,0.75849,2636.3,2636.2,0.6137]
[1748580644544,1.97148,2636.4,2636.2,1.37222]
[1748580645747,0.75849,2636.3,2636.2,1.37222]
[1748580647249,0.75849,2636.3,2636.2,0.6137]
[1748580647850,1.97148,2636.4,2636.2,1.37221]
[1748580649550,0.75849,2636.3,2636.2,0.6137]
[1748580649847,0.75849,2636.3,2636.2,1.37222]
[1748580650147,0.82842857,2636.3,2636.2,1.37222]
[1748580650648,0.82842857,2636.3,2636.2,0.6137]
[1748580651947,0.82842857,2636.3,2636.2,1.37222]
[1748580652650,0.82842857,2636.3,2636.2,0.6137]
[1748580654047,0.75858,2636.0,2635.8,3.2078]
[1748580654361,0.75855,2636.1,2635.9,0.75859]
[1748580654545,0.75855,2636.1,2635.9,1.41929]
[1748580654747,1.36905,2636.1,2635.9,1.41929]
[1748580655158,0.06993857,2636.3,2635.9,0.6607]
[1748580655446,0.82843857,2636.3,2636.1,0.75852]
[1748580655651,0.82843857,2636.3,2636.1,5.78312]
[1748580656054,0.06993857,2636.3,2636.2,0.75852]
[1748580656557,0.06993857,2636.3,2636.2,2.02912]
[1748580659752,0.06993857,2636.3,2636.1,6.9618]
[1748580659753,0.06993857,2636.3,2636.1,7.72032]
[1748580659950,0.06993857,2636.3,2636.2,0.75852]
[1748580660151,2.02703857,2636.3,2636.2,0.75852]
[1748580660652,0.75852,2636.2,2636.1,6.9618]
[1748580660858,1.3011,2636.2,2636.1,7.72035]
[1748580661459,2.05962,2636.2,2636.1,6.9618]
[1748580662563,2.37576239,2636.2,2635.8,3.754]
[1748580662755,0.75864,2635.8,2635.6,3.754]
[1748580662955,0.6503,2635.7,2635.6,4.51269]
[1748580663150,0.6503,2635.7,2635.6,3.754]
[1748580663151,2.72046,2635.7,2635.6,3.754]
[1748580663360,1.9618,2635.7,2635.6,3.754]
[1748580663559,2.72046,2635.7,2635.6,3.754]
[1748580664258,3.79536869,2635.7,2635.6,3.754]
[1748580664458,0.75877,2635.4,2635.3,3.754]
[1748580664854,3.96657,2635.4,2635.3,3.754]
[1748580665053,5.04141811,2635.4,2635.3,3.754]
[1748580666859,1.3281,2635.6,2635.3,4.51278]
[1748580667060,1.07348398,2635.5,2635.3,3.754]
[1748580667263,1.3281,2635.4,2635.3,3.754]
[1748580667952,2.08685,2635.4,2635.3,3.754]
[1748580668966,3.8581,2635.7,2635.3,3.754]
[1748580669160,0.75875,2635.4,2635.3,3.754]
[1748580671064,0.75871,2635.6,2635.4,0.75873]
[1748580671360,3.8581,2635.7,2635.3,3.754]
[1748580671560,0.75875,2635.4,2635.3,3.754]
[1748580676570,0.75881,2635.2,2635.1,4.409]
[1748580676766,0.75881,2635.2,2635.1,5.16782]
[1748580677365,0.75881,2635.2,2635.1,4.409]
[1748580678575,2.61779,2635.3,2635.1,5.16783]
[1748580679274,2.61779,2635.3,2635.1,6.46533]
[1748580679475,0.75881,2635.2,2635.1,6.46533]
[1748580679675,0.75881,2635.2,2635.1,5.7065]
[1748580680578,0.82869857,2635.4,2635.2,0.75878]
[1748580680769,0.82869857,2635.4,2635.2,2.03488]
[1748580681272,0.06993857,2635.4,2635.3,3.96658]
[1748580681474,1.89621,2636.4,2636.0,0.75857]
[1748580681475,0.6287,2636.1,2636.0,0.75857]
[1748580681774,3.2078,2636.3,2636.0,0.75857]
[1748580681973,0.75852,2636.2,2636.1,1.2761]
[1748580682176,5.2087,2636.3,2636.1,2.03463]
[1748580682371,4.4502,2636.3,2636.1,1.2761]
[1748580682574,5.20869,2636.3,2636.1,2.03463]
[1748580683774,5.20869,2636.3,2636.1,1.2761]
[1748580684075,4.4502,2636.3,2636.0,1.2907]
[1748580684275,0.75853,2636.2,2636.0,1.2907]
[1748580684478,0.75853,2636.2,2636.0,2.04927]
[1748580684775,5.20871,2636.3,2636.0,2.04927]
[1748580685778,5.20871,2636.3,2636.0,2.04926]
[1748580686176,0.75852,2636.2,2636.0,2.04926]
[1748580686476,2.64612,2636.2,2636.0,2.04926]
[1748580687681,1.8876,2636.2,2636.0,2.04926]
[1748580688378,2.64612,2636.2,2636.0,1.2907]
[1748580688582,1.8876,2636.2,2636.1,0.75855]
[1748580688768,2.64612,2636.2,2636.0,3.31946]
[1748580688973,1.8876,2636.2,2636.0,3.31946]
[1748580689379,2.64613,2636.2,2636.0,3.31946]
[1748580689779,0.75855,2636.1,2636.0,2.5609]
[1748580689976,1.8876,2636.2,2636.0,2.5609]
[1748580690279,2.64613,2636.2,2636.0,3.31946]
[1748580690475,0.75857,2636.0,2635.9,3.754]
[1748580690779,0.75857,2636.0,2635.0,38.247]
[1748580690780,0.75866,2635.7,2635.6,0.6348]
[1748580691373,2.69416,2635.7,2635.6,0.6348]
[1748580692281,1.9355,2635.7,2635.6,1.39349]
[1748580692481,0.6176,2635.7,2635.6,1.39349]
[1748580693777,1.37626,2635.7,2635.6,0.6348]
[1748580694280,1.8784,2635.7,2635.6,0.6348]
[1748580694484,1.8784,2635.7,2635.6,1.39349]
[1748580694681,2.63706,2635.7,2635.6,0.6348]
[1748580694978,2.70699857,2635.7,2635.6,0.6348]
[1748580695183,0.75869,2635.6,2635.4,4.51273]
[1748580695384,2.00809,2635.6,2635.4,4.51273]
[1748580695678,0.75872,2635.5,2635.4,3.754]
[1748580695884,1.2494,2635.5,2635.4,4.51275]
[1748580699683,2.09421857,2635.7,2635.6,0.75869]
[1748580699684,0.68753857,2635.7,2635.6,0.75869]
[1748580699883,0.7587,2635.6,2635.4,5.84643]
[1748580700084,2.0213,2635.6,2635.4,4.51273]
[1748580700684,1.2626,2635.6,2635.5,0.75872]
[1748580702185,2.0213,2635.6,2635.4,4.51274]
[1748580702782,2.0213,2635.6,2635.4,4.51273]
[1748580702982,1.2626,2635.6,2635.5,0.75872]
[1748580703389,2.02129,2635.6,2635.5,0.75872]
[1748580703891,2.02129,2635.6,2635.4,4.51273]
[1748580704183,0.06993857,2635.7,2635.4,3.754]
[1748580704390,0.7587,2635.6,2635.5,1.2783]
[1748580705184,0.75872,2635.5,2635.4,4.51272]
[1748580705385,0.75872,2635.5,2635.4,4.51275]
[1748580705585,0.75872,2635.5,2635.4,3.754]
[1748580705979,3.05486587,2635.5,2635.4,3.754]
[1748580708088,3.05486587,2635.5,2635.4,4.51275]
[1748580708592,2.29614587,2635.5,2635.4,4.51275]
[1748580708787,3.05486587,2635.5,2635.4,4.51275]
[1748580708987,1.98012,2635.5,2635.4,4.51275]
[1748580709189,3.05493781,2635.5,2635.4,3.754]
[1748580709389,0.75875,2635.4,2635.3,1.2724]
[1748580709590,2.02275,2635.4,2635.3,1.2724]
[1748580710497,2.02275,2635.4,2635.3,2.03118]
[1748580710698,2.02275,2635.4,2635.3,1.2724]
[1748580711192,1.264,2635.4,2635.3,0.651]
[1748580711497,0.82865857,2635.5,2635.3,1.40976]
[1748580711696,0.06993857,2635.5,2635.3,2.72336]
[1748580711894,0.82865857,2635.5,2635.3,2.72336]
[1748580712401,0.82865857,2635.5,2635.3,2.72338]
[1748580712694,0.06993857,2635.5,2635.4,0.75875]
[1748580712896,0.06993857,2635.5,2635.4,2.07235]
[1748580720399,0.75875,2635.4,2635.3,0.651]
[1748580720899,1.83588142,2635.4,2635.3,0.651]
[1748580721297,0.75878,2635.3,2635.2,3.2078]
[1748580721498,1.9231,2635.3,2635.2,3.96661]
[1748580721698,2.68188,2635.3,2635.2,3.2078]
[1748580722595,0.75881,2635.2,2635.1,3.754]
[1748580723197,2.68188,2635.3,2635.1,4.51282]
[1748580723600,2.68188,2635.3,2635.1,4.402]
[1748580723791,0.75881,2635.2,2635.1,4.402]
[1748580724303,9.28485269,2635.2,2634.4,3.51234987]
[1748580724506,0.75894,2634.8,2634.5,1.407]
[1748580724709,1.83602269,2634.7,2634.5,1.9527]
[1748580724899,0.75897,2634.7,2634.5,1.9527]
[1748580725207,0.75897,2634.7,2634.5,2.71171]
[1748580725598,0.75898,2634.6,2634.5,1.9527]
[1748580725807,0.75901,2634.5,2634.4,0.6626]
[1748580725994,0.75901,2634.5,2634.3,0.00569465]
[1748580726199,0.75901,2634.5,2634.3,0.76475465]